fUST/lending_fUST_20251006
["ID","MTS","AMOUNT","RATE_DAILY","PERIOD"]
[389559866,1759713060939,-1391.1,0.00018082,2]
[389559868,1759713060949,-500.0,0.00018082,2]
[389559870,1759713060960,-271.671131,0.00018082,2]
[389559872,1759713060970,-500.0,0.00018082,2]
[389559874,1759713060979,-151.0,0.00018082,2]
[389559876,1759713060988,-271.671131,0.00018082,2]
[389559878,1759713060998,-1166.83,0.00018082,2]
[389559880,1759713061008,-204.057643,0.00018082,2]
[389559882,1759713061019,-5738.254316,0.00018082,2]
[389559884,1759713061028,-463.094162,0.00018082,2]
[389559886,1759713061038,-271.671125,0.00018082,2]
[389559887,1759713061048,-5738.254316,0.00018082,2]
[389559889,1759713061057,-463.094162,0.00018082,2]
[389559891,1759713061073,-231.759741,0.00018082,2]
[389559893,1759713061088,-151.0,0.00018082,2]
[389559895,1759713061097,-557.695997,0.00018082,2]
[389559897,1759713061106,-5738.254316,0.00018082,2]
[389559899,1759713061115,-463.094162,0.00018082,2]
[389559901,1759713061127,-231.759741,0.00018082,2]
[389559903,1759713061136,-151.0,0.00018082,2]
[389559904,1759713061146,-557.695997,0.00018082,2]
[389559906,1759713061156,-463.094158,0.00018082,2]
[389559908,1759713061165,-231.759741,0.00018082,2]
[389559910,1759713061174,-557.695997,0.00018082,2]
[389559912,1759713061183,-638.55,0.00018082,2]
[389559914,1759713061193,-5738.254325,0.00018082,2]
[389559916,1759713061203,-9316.12,0.00018082,2]
[389559918,1759713061213,-231.759748,0.00018082,2]
[389559920,1759713061222,-557.695991,0.00018082,2]
[389559922,1759713061232,-1139.0,0.00018082,2]
[389559924,1759713061241,-3120.92,0.00018082,2]
[389559927,1759713061262,-500.0,0.00018082,2]
[389559929,1759713061272,-153.679598,0.00018082,2]
[389559930,1759713061281,-153.679598,0.00018082,2]
[389559932,1759713061291,-500.0,0.00018082,2]
[389559934,1759713061303,-153.679598,0.00018082,2]
[389559936,1759713061312,-631.22292966,0.00018082,2]
[389559938,1759713061322,-679.0896,0.00018082,2]
[389559940,1759713061331,-153.679594,0.00018082,2]
[389559942,1759713061341,-679.0896,0.00018082,2]
[389559944,1759713061352,-679.0896,0.00018082,2]
[389559946,1759713061361,-318.80970978,0.00018082,2]
[389559948,1759713061371,-1120.6,0.00018082,2]
[389559950,1759713061381,-679.08959,0.00018082,2]
[389559952,1759713061391,-500.0,0.00018082,2]
[389559954,1759713061400,-446.61754,0.00018082,2]
[389559956,1759713061410,-446.61754,0.00018082,2]
[389559958,1759713061419,-446.61754,0.00018082,2]
[389559960,1759713061429,-863.63,0.00018082,2]
[389559961,1759713061439,-446.617545,0.00018082,2]
[389559963,1759713061448,-500.0,0.00018082,2]
[389559965,1759713061458,-500.0,0.00018082,2]
[389559967,1759713061468,-500.0,0.00018082,2]
[389559969,1759713061478,-10365.58,0.00018082,2]
[389559971,1759713061488,-569.34,0.00018082,2]
[389559973,1759713061498,-734.39,0.00018082,2]
[389559975,1759713061508,-256.862147,0.00018082,2]
[389559977,1759713061518,-256.862147,0.00018082,2]
[389559979,1759713061528,-500.0,0.00018082,2]
[389559981,1759713061538,-256.862147,0.00018082,2]
[389559983,1759713061548,-500.0,0.00018082,2]
[389559985,1759713061557,-256.862143,0.00018082,2]
[389559987,1759713061568,-500.0,0.00018082,2]
[389559989,1759713061578,-500.0,0.00018082,2]
[389559991,1759713061587,-4391.44,0.00018082,2]
[389559993,1759713061596,-1937.56,0.00018082,2]
[389559995,1759713061606,-500.0,0.00018082,2]
[389559996,1759713061617,-500.0,0.00018082,2]
[389559998,1759713061627,-2424.24,0.00018082,2]
[389560000,1759713061637,-500.0,0.00018082,2]
[389560002,1759713061646,-166.07,0.00018082,2]
[389560004,1759713061656,-5359.2,0.00018082,2]
[389560006,1759713061666,-151.0,0.00018082,2]
[389560008,1759713061676,-1658.6,0.00018082,2]
[389560009,1759713061686,-226.35557,0.00018082,2]
[389560010,1759713061695,-500.0,0.00018082,2]
[389560011,1759713061705,-169.4828115,0.000181,2]
[389560012,1759713061717,-532.509,0.000181,2]
[389560013,1759713061727,-168.0,0.00018133,2]
[389560014,1759713061737,-258.0,0.00018165,2]
[389560015,1759713061747,-1000.0,0.00018186,2]
[389560016,1759713061757,-1000.0,0.00018186,2]
[389560017,1759713061767,-1000.0,0.00018196,2]
[389560018,1759713061778,-373.33953784,0.00018196,2]
[389560019,1759713061788,-1000.0,0.00018196,2]
[389560020,1759713061798,-1000.0,0.00018196,2]
[389560021,1759713061807,-168.0,0.00018202,2]
[389560022,1759713061818,-500.0,0.00018248,2]
[389560023,1759713061828,-1000.0,0.00018248,2]
[389560024,1759713061838,-1000.0,0.00018248,2]
[389560025,1759713061848,-1000.0,0.00018249,2]
[389560026,1759713061858,-1000.0,0.00018249,2]
[389560027,1759713061867,-1000.0,0.00018249,2]
[389560028,1759713061880,-1000.0,0.00018249,2]
[389560029,1759713061890,-1000.0,0.00018249,2]
[389560030,1759713061900,-500.0,0.00018249,2]
[389560031,1759713061911,-12357.06857415,0.00018256,2]
[389560032,1759713061921,-500.0,0.00018281,2]
[389560033,1759713061931,-440.29413678,0.00018281,2]
[389560034,1759713061941,-1000.0,0.00018297,2]
[389560035,1759713061950,-258.0,0.00018303,2]
[389560036,1759713061959,-1000.0,0.0001831,2]
[389560037,1759713061969,-1000.0,0.00018333,2]
[389560038,1759713061978,-166.0,0.00018336,2]
[389560039,1759713061988,-166.0,0.00018336,2]
[389560040,1759713061999,-420.0,0.00018338,2]
[389560041,1759713062010,-1000.0,0.00018351,2]
[389560042,1759713062023,-1397.0,0.00018356,2]
[389560043,1759713062034,-500.0,0.00018356,2]
[389560045,1759713062044,-500.0,0.00018356,2]
[389560046,1759713062054,-943.41,0.00018356,2]
[389560047,1759713062064,-527.53,0.00018356,2]
[389560049,1759713062076,-173.820776,0.00018356,2]
[389560050,1759713062089,-233.065421,0.00018356,2]
[389560052,1759713062099,-151.0,0.00018356,2]
[389560054,1759713062108,-230.291048,0.00018356,2]
[389560056,1759713062117,-723.41,0.00018356,2]
[389560058,1759713062127,-606.57,0.00018356,2]
[389560060,1759713062136,-151.0,0.00018356,2]
[389560062,1759713062145,-151.0,0.00018356,2]
[389560064,1759713062154,-875.15,0.00018356,2]
[389560066,1759713062163,-500.0,0.00018356,2]
[389560089,1759713062367,-257.527284,0.00018356,2]
[389560091,1759713062377,-151.0,0.00018356,2]
[389560093,1759713062387,-500.0,0.00018356,2]
[389560095,1759713062398,-776.19,0.00018356,2]
[389560097,1759713062407,-813.27,0.00018356,2]
[389560099,1759713062416,-500.0,0.00018356,2]
[389560101,1759713062425,-500.0,0.00018356,2]
[389560103,1759713062434,-500.0,0.00018356,2]
[389560105,1759713062444,-500.0,0.00018356,2]
[389560107,1759713062453,-654.99,0.00018356,2]
[389560109,1759713062462,-535.6,0.00018356,2]
[389560111,1759713062471,-500.0,0.00018356,2]
[389560113,1759713062480,-500.0,0.00018356,2]
[389560115,1759713062489,-887.22,0.00018356,2]
[389560117,1759713062499,-500.0,0.00018356,2]
[389560119,1759713062508,-765.64,0.00018356,2]
[389560121,1759713062520,-214.32631878,0.00018356,2]
[389560123,1759713062529,-587.59,0.00018356,2]
[389560125,1759713062539,-1102.28,0.00018356,2]
[389560127,1759713062548,-500.0,0.00018356,2]
[389560129,1759713062557,-517.45,0.00018356,2]
[389560132,1759713062567,-500.27,0.00018356,2]
[389560133,1759713062577,-500.0,0.00018356,2]
[389560136,1759713062586,-1384.45,0.00018356,2]
[389560138,1759713062595,-500.0,0.00018356,2]
[389560139,1759713062605,-500.0,0.00018356,2]
[389560142,1759713062614,-500.0,0.00018356,2]
[389560144,1759713062624,-500.0,0.00018356,2]
[389560145,1759713062632,-500.0,0.00018356,2]
[389560147,1759713062642,-541.64,0.00018356,2]
[389560149,1759713062651,-500.0,0.00018356,2]
[389560151,1759713062660,-500.0,0.00018356,2]
[389560154,1759713062669,-695.25,0.00018356,2]
[389560156,1759713062679,-1387.11,0.00018356,2]
[389560158,1759713062689,-984.94,0.00018356,2]
[389560160,1759713062698,-1508.02,0.00018356,2]
[389560162,1759713062708,-626.5,0.00018356,2]
[389560164,1759713062717,-846.36,0.00018356,2]
[389560166,1759713062726,-3829.66,0.00018356,2]
[389560168,1759713062735,-500.0,0.00018356,2]
[389560170,1759713062744,-838.38,0.00018356,2]
[389560172,1759713062755,-500.0,0.00018356,2]
[389560174,1759713062765,-7271.63,0.00018356,2]
[389560176,1759713062774,-868.51,0.00018356,2]
[389560178,1759713062784,-500.0,0.00018356,2]
[389560180,1759713062794,-623.23,0.00018356,2]
[389560182,1759713062803,-10604.76,0.00018356,2]
[389560184,1759713062812,-1306.95,0.00018356,2]
[389560186,1759713062824,-1022.02,0.00018356,2]
[389560188,1759713062834,-500.0,0.00018356,2]
[389560190,1759713062845,-1668.52,0.00018356,2]
[389560192,1759713062854,-2980.25,0.00018356,2]
[389560194,1759713062863,-1326.38,0.00018356,2]
[389560196,1759713062873,-1794.78,0.00018356,2]
[389560198,1759713062882,-500.0,0.00018356,2]
[389560200,1759713062891,-1089.97,0.00018356,2]
[389560202,1759713062900,-500.0,0.00018356,2]
[389560204,1759713062909,-3319.91,0.00018356,2]
[389560206,1759713062918,-637.43,0.00018356,2]
[389560208,1759713062927,-626.33,0.00018356,2]
[389560210,1759713062936,-500.0,0.00018356,2]
[389560212,1759713062946,-3422.7,0.00018356,2]
[389560214,1759713062955,-1166.32,0.00018356,2]
[389560216,1759713062965,-500.0,0.00018356,2]
[389560218,1759713062974,-4273.81,0.00018356,2]
[389560220,1759713062984,-500.0,0.00018356,2]
[389560222,1759713062993,-500.0,0.00018356,2]
[389560224,1759713063003,-1431.63,0.00018356,2]
[389560226,1759713063013,-500.0,0.00018356,2]
[389560228,1759713063022,-1125.66,0.00018356,2]
[389560230,1759713063031,-500.0,0.00018356,2]
[389560232,1759713063040,-985.35,0.00018356,2]
[389560234,1759713063050,-500.0,0.00018356,2]
[389560236,1759713063059,-1514.11,0.00018356,2]
[389560238,1759713063069,-999.19,0.00018356,2]
[389560240,1759713063082,-500.0,0.00018356,2]
[389560242,1759713063092,-723.33,0.00018356,2]
[389560244,1759713063102,-2023.81,0.00018356,2]
[389560246,1759713063111,-500.0,0.00018356,2]
[389560248,1759713063119,-500.0,0.00018356,2]
[389560250,1759713063130,-906.92,0.00018356,2]
[389560252,1759713063140,-500.0,0.00018356,2]
[389560255,1759713063150,-4035.12,0.00018356,2]
[389560257,1759713063161,-500.0,0.00018356,2]
[389560259,1759713063171,-500.0,0.00018356,2]
[389560261,1759713063181,-500.0,0.00018356,2]
[389560263,1759713063190,-500.0,0.00018356,2]
[389560265,1759713063199,-500.0,0.00018356,2]
[389560267,1759713063209,-581.71,0.00018356,2]
[389560269,1759713063220,-645.97,0.00018356,2]
[389560271,1759713063230,-1391.1,0.00018356,2]
[389560273,1759713063242,-511.76833046,0.00018356,2]
[389560274,1759713063251,-500.0,0.00018356,2]
[389560276,1759713063260,-1166.83,0.00018356,2]
[389560279,1759713063271,-638.55,0.00018356,2]
[389560281,1759713063281,-4037.0636072,0.00018356,2]
[389560301,1759713063459,-5279.0563928,0.00018356,2]
[389560303,1759713063469,-1139.0,0.00018356,2]
[389560305,1759713063479,-3120.92,0.00018356,2]
[389560307,1759713063488,-500.0,0.00018356,2]
[389560309,1759713063497,-500.0,0.00018356,2]
[389560311,1759713063506,-1120.6,0.00018356,2]
[389560313,1759713063515,-500.0,0.00018356,2]
[389560315,1759713063524,-863.63,0.00018356,2]
[389560317,1759713063534,-500.0,0.00018356,2]
[389560319,1759713063543,-500.0,0.00018356,2]
[389560321,1759713063553,-500.0,0.00018356,2]
[389560323,1759713063562,-10365.58,0.00018356,2]
[389560325,1759713063571,-569.34,0.00018356,2]
[389560328,1759713063581,-734.39,0.00018356,2]
[389560330,1759713063590,-500.0,0.00018356,2]
[389560331,1759713063599,-500.0,0.00018356,2]
[389560334,1759713063609,-4391.44,0.00018356,2]
[389560336,1759713063618,-1937.56,0.00018356,2]
[389560338,1759713063628,-500.0,0.00018356,2]
[389560340,1759713063637,-408.66,0.00018356,2]
[389560342,1759713063646,-2424.24,0.00018356,2]
[389560344,1759713063655,-500.0,0.00018356,2]
[389560346,1759713063664,-5359.2,0.00018356,2]
[389560348,1759713063673,-1658.6,0.00018356,2]
[389560350,1759713063682,-500.0,0.00018356,2]
[389560352,1759713063692,-500.0,0.00018368,2]
[389560354,1759713063701,-1500.0,0.00018368,2]
[389560356,1759713063711,-1500.0,0.00018368,2]
[389560358,1759713063720,-4456.62156325,0.000184,2]
[389560360,1759713063728,-258.0,0.00018414,2]
[389560362,1759713063737,-168.0,0.00018425,2]
[389560364,1759713063746,-168.0,0.00018431,2]
[389560366,1759713063756,-720.0,0.00018442,2]
[389560367,1759713063765,-500.0,0.00018473,2]
[389560369,1759713063775,-374.79613424,0.00018473,2]
[389560371,1759713063784,-176.94049979,0.00018473,2]
[389560373,1759713063793,-214.91140261,0.00018473,2]
[389560375,1759713063802,-500.0,0.00018473,2]
[389560378,1759713063813,-500.0,0.00018473,2]
[389560380,1759713063823,-504.31003243,0.00018473,2]
[389560382,1759713063832,-217.09356172,0.00018473,2]
[389560384,1759713063841,-627.59865896,0.00018473,2]
[389560386,1759713063851,-500.0,0.00018473,2]
[389560388,1759713063863,-500.0,0.00018473,2]
[389560390,1759713063872,-500.0,0.00018473,2]
[389560392,1759713063881,-500.0,0.00018473,2]
[389560394,1759713063890,-500.0,0.00018473,2]
[389560395,1759713063900,-500.0,0.00018473,2]
[389560397,1759713063909,-500.0,0.00018473,2]
[389560399,1759713063919,-500.0,0.00018473,2]
[389560401,1759713063929,-500.0,0.00018473,2]
[389560404,1759713063940,-500.0,0.00018473,2]
[389560406,1759713063949,-212.3223848,0.00018473,2]
[389560407,1759713063959,-500.0,0.00018473,2]
[389560410,1759713063969,-500.0,0.00018473,2]
[389560412,1759713063979,-526.35308418,0.00018473,2]
[389560414,1759713063988,-500.0,0.00018473,2]
[389560416,1759713063998,-500.0,0.00018473,2]
[389560417,1759713064008,-163.88694034,0.00018473,2]
[389560420,1759713064018,-500.0,0.00018473,2]
[389560421,1759713064027,-500.0,0.00018473,2]
[389560423,1759713064038,-151.0,0.00018473,2]
[389560426,1759713064049,-151.0,0.00018473,2]
[389560427,1759713064058,-200.0,0.00018499,2]
[389560430,1759713064068,-57319.48911757,0.000185,2]
[389560821,1759713067989,-500.0,0.00016438,2]
[389560823,1759713067999,-568.06,0.00016438,2]
[389560825,1759713068008,-615.17,0.00016438,2]
[389560827,1759713068017,-500.0,0.00016438,2]
[389560829,1759713068027,-175.34399701,0.00016438,2]
[389560831,1759713068036,-500.0,0.00016438,2]
[389560833,1759713068047,-151.0,0.00016438,2]
[389560836,1759713068057,-621.18167585,0.00016712,2]
[389560837,1759713068066,-500.0,0.00016712,2]
[389560839,1759713068076,-568.06,0.00016712,2]
[389560841,1759713068089,-615.17,0.00016712,2]
[389560843,1759713068099,-500.0,0.00016712,2]
[389560845,1759713068108,-500.0,0.00016712,2]
[389560847,1759713068118,-500.0,0.00016986,2]
[389560849,1759713068128,-568.06,0.00016986,2]
[389560851,1759713068137,-615.17,0.00016986,2]
[389560853,1759713068146,-500.0,0.00016986,2]
[389560855,1759713068157,-268.683474,0.000171,2]
[389560857,1759713068167,-268.683474,0.000171,2]
[389560859,1759713068175,-268.683474,0.000171,2]
[389560861,1759713068185,-500.0,0.0001726,2]
[389560863,1759713068194,-568.06,0.0001726,2]
[389560865,1759713068204,-615.17,0.0001726,2]
[389560867,1759713068213,-268.683474,0.0001726,2]
[389560869,1759713068223,-500.0,0.0001726,2]
[389560871,1759713068232,-268.683474,0.0001726,2]
[389560873,1759713068241,-268.683474,0.0001726,2]
[389560875,1759713068250,-500.0,0.00017534,2]
[389560877,1759713068259,-568.06,0.00017534,2]
[389560879,1759713068268,-615.17,0.00017534,2]
[389560881,1759713068278,-268.683474,0.00017534,2]
[389560883,1759713068288,-453.19,0.00017534,2]
[389560885,1759713068297,-268.683474,0.00017534,2]
[389560887,1759713068307,-500.0,0.00017808,2]
[389560889,1759713068316,-568.06,0.00017808,2]
[389560892,1759713068326,-344.48420414,0.00017808,2]
[389560895,1759713068351,-500.0,0.00016438,2]
[389560897,1759713068360,-268.683474,0.00017534,2]
[389560899,1759713068370,-270.68579586,0.00017808,2]
[389560901,1759713068380,-268.683474,0.00017808,2]
[389560903,1759713068390,-268.683474,0.00017808,2]
[389560905,1759713068400,-500.0,0.00018082,2]
[389560907,1759713068409,-568.06,0.00018082,2]
[389560909,1759713068418,-615.17,0.00018082,2]
[389560911,1759713068427,-268.683474,0.00018082,2]
[389560913,1759713068436,-268.683474,0.00018082,2]
[389560915,1759713068445,-500.0,0.00018356,2]
[389560917,1759713068455,-568.06,0.00018356,2]
[389560919,1759713068464,-615.17,0.00018356,2]
[389560921,1759713068473,-18547.83913055,0.000185,2]
[389560923,1759713068484,-3259.00345254,0.000185,2]
[389560926,1759713068500,-438.28170347,0.000185,2]
[389562029,1759713084869,500.0,0.00027397,120]
[389562034,1759713202971,417.15472785,0.00025,30]
[389562045,1759713393993,500.0,0.00027397,120]
[389562048,1759713582146,1000.0,0.00028767,120]
[389562050,1759713730295,666.0,0.00015335,2]
[389562052,1759714007158,500.0,0.00027397,120]
[389562053,1759714016352,2794.0,0.00028767,120]
[389562054,1759714024961,3041.63344036,0.00031845,120]
[389562056,1759714052023,1651.41142609,0.00031845,120]
[389562097,1759714232207,-300.0,0.00016236,2]
[389562099,1759714232216,-300.0,0.00016328,2]
[389562101,1759714232226,-1200.0,0.00016328,2]
[389562103,1759714232235,-500.0,0.00016328,2]
[389562105,1759714232244,-500.0,0.00016328,2]
[389562107,1759714232253,-500.0,0.00016328,2]
[389562109,1759714232262,-500.0,0.00016328,2]
[389562111,1759714232271,-500.0,0.00016328,2]
[389562113,1759714232281,-500.0,0.00016328,2]
[389562115,1759714232290,-500.0,0.00016328,2]
[389562117,1759714232299,-500.0,0.00016328,2]
[389562119,1759714232308,-500.0,0.00016328,2]
[389562121,1759714232317,-500.0,0.00016328,2]
[389562125,1759714232327,-241.42729144,0.00016328,2]
[389562128,1759714232336,-500.0,0.00016328,2]
[389562131,1759714232345,-500.0,0.00016328,2]
[389562135,1759714232354,-480.0,0.00016329,2]
[389562138,1759714232363,-374.19292703,0.00016329,2]
[389562142,1759714232374,-466.53666222,0.00016329,2]
[389562147,1759714232385,-695.04830867,0.00016329,2]
[389562152,1759714233318,1450.52684296,0.0003185,120]
[389562155,1759714238168,-500.0,0.00016328,2]
[389562156,1759714238178,-500.0,0.00016328,2]
[389562157,1759714238187,-500.0,0.00016328,2]
[389562158,1759714238196,-500.0,0.00016328,2]
[389562159,1759714238206,-500.0,0.00016328,2]
[389562160,1759714238215,-500.0,0.00016328,2]
[389562161,1759714238224,-500.0,0.00016328,2]
[389562162,1759714238236,-500.0,0.00016328,2]
[389562163,1759714238245,-500.0,0.00016328,2]
[389562164,1759714238254,-500.0,0.00016328,2]
[389562165,1759714238263,-500.0,0.00016328,2]
[389562166,1759714238273,-500.0,0.00016328,2]
[389562167,1759714238282,-500.0,0.00016328,2]
[389562168,1759714238291,-500.0,0.00016328,2]
[389562169,1759714238300,-500.0,0.00016328,2]
[389562170,1759714238309,-500.0,0.00016328,2]
[389562171,1759714238318,-500.0,0.00016328,2]
[389562172,1759714238327,-348.154171,0.00016328,2]
[389562173,1759714238339,-151.845829,0.00016328,2]
[389562174,1759714238349,-500.0,0.00016328,2]
[389562175,1759714238359,-464.60676364,0.00016328,2]
[389562176,1759714238371,-35.39323636,0.00016328,2]
[389562177,1759714238381,-242.92146725,0.00016328,2]
[389562178,1759714238392,-257.07853275,0.00016328,2]
[389562179,1759714238401,-500.0,0.00016328,2]
[389562180,1759714238410,-448.16588589,0.00016328,2]
[389562181,1759714238427,-51.83411411,0.00016328,2]
[389562182,1759714238436,-500.0,0.00016328,2]
[389562183,1759714238446,-500.0,0.00016328,2]
[389562184,1759714238455,-17035.02884924,0.00016329,2]
[389562185,1759714238464,-1992.78177956,0.00016336,5]
[389562186,1759714238474,-256.17177166,0.00016337,2]
[389562187,1759714238486,-5347.9458759,0.00016338,2]
[389562188,1759714238498,-28458.27148016,0.00016338,2]
[389562189,1759714238509,-19263.31187131,0.00016338,2]
[389562207,1759714243365,-2224.61991165,0.00016338,2]
[389562208,1759714243377,-20223.74895424,0.00016338,2]
[389562209,1759714243388,-2621.97485311,0.00016338,2]
[389562220,1759714246122,-124608.88680825,0.00016338,2]
[389562221,1759714262125,300.22,0.00028767,120]
[389562222,1759714271845,494.5,0.0002876,120]
[389562223,1759714287556,272.2656988,0.00015413,2]
[389562225,1759714510132,2437.17,0.00028767,120]
[389562226,1759714528375,2437.17,0.00028767,120]
[389562227,1759714538190,3020.0,0.00031846,60]
[389562235,1759714636816,2000.0,0.00028767,120]
[389562236,1759714644617,457.87595732,0.00031846,120]
[389562237,1759714647654,2000.0,0.00028767,120]
[389562238,1759714660097,2000.0,0.00028767,120]
[389562239,1759714688198,2000.0,0.00031846,60]
[389562240,1759714698305,2000.0,0.00031846,60]
[389562241,1759714710665,2000.0,0.00031846,60]
[389562243,1759714747598,1000.0,0.00031846,60]
[389562244,1759714758866,1127.13914,0.00031846,60]
[389562248,1759714899345,155.0,0.00028767,120]
[389562249,1759714926347,366.7273863,0.00028767,120]
[389562250,1759714981071,342.97602254,0.0002012,9]
[389562253,1759715183795,189.244333,0.00015177,2]
[389562255,1759715230153,500.0,0.00027397,120]
[389562293,1759715432284,-300.0,0.00015947,2]
[389562295,1759715432293,-539.81313837,0.00015954,2]
[389562297,1759715432302,-300.0,0.00015988,2]
[389562299,1759715432311,-1200.0,0.00015988,2]
[389562301,1759715432320,-307.5075865,0.00015989,2]
[389562303,1759715432329,-500.0,0.00015989,2]
[389562305,1759715432337,-500.0,0.00015989,2]
[389562307,1759715432346,-500.0,0.00015989,2]
[389562309,1759715432355,-500.0,0.00015989,2]
[389562311,1759715432364,-500.0,0.00015989,2]
[389562312,1759715432373,-500.0,0.00015989,2]
[389562314,1759715432382,-374.14272915,0.00015989,2]
[389562316,1759715432391,-336.75625368,0.00015989,2]
[389562318,1759715432401,-3583.30541873,0.0001599,2]
[389562445,1759715438444,-96416.69458127,0.0001599,2]
[389562446,1759715438453,-1462.94254067,0.00016054,2]
[389562447,1759715438462,-216.747874,0.00016337,2]
[389562448,1759715438470,-14194.2458982,0.00016337,2]
[389562449,1759715438478,-2458.2168549,0.00016337,2]
[389562450,1759715438486,-2450.0264009,0.00016337,2]
[389562451,1759715438494,-163.04405493,0.00016338,2]
[389562452,1759715438502,-4285.81829252,0.00016338,2]
[389562453,1759715438510,-1782.58496444,0.00016338,2]
[389562454,1759715438519,-324.0,0.00016347,2]
[389562455,1759715438529,-258.0,0.00016412,2]
[389562456,1759715438539,-1090.06,0.00016428,3]
[389562457,1759715438548,-545.03,0.00016428,3]
[389562458,1759715438557,-272.52,0.00016428,3]
[389562459,1759715438566,-817.57,0.00016428,3]
[389562460,1759715438575,-155.0,0.00016437,2]
[389562461,1759715438584,-500.0,0.00016438,2]
[389562462,1759715438593,-500.0,0.00016438,2]
[389562463,1759715438603,-598.59,0.00016438,2]
[389562464,1759715438612,-500.0,0.00016438,2]
[389562465,1759715438621,-500.0,0.00016438,2]
[389562466,1759715438630,-500.0,0.00016438,2]
[389562467,1759715438639,-500.0,0.00016438,2]
[389562468,1759715438648,-500.0,0.00016438,2]
[389562469,1759715438657,-500.0,0.00016438,2]
[389562470,1759715438667,-195.54744213,0.00016438,2]
[389562471,1759715438676,-500.0,0.00016438,2]
[389562472,1759715438685,-502.75975951,0.00016438,2]
[389562473,1759715438694,-502.36662137,0.00016438,2]
[389562474,1759715438702,-500.0,0.00016438,2]
[389562475,1759715438711,-829.44,0.00016438,2]
[389562476,1759715438720,-500.0,0.00016438,2]
[389562477,1759715438730,-482.85998462,0.00016438,2]
[389562478,1759715438738,-504.54305302,0.00016438,2]
[389562479,1759715438747,-500.0,0.00016438,2]
[389562480,1759715438757,-500.0,0.00016438,2]
[389562481,1759715438766,-392.81424725,0.00016438,2]
[389562482,1759715438775,-500.0,0.00016438,2]
[389562483,1759715438784,-500.0,0.00016438,2]
[389562484,1759715438793,-500.0,0.00016438,2]
[389562485,1759715438802,-500.0,0.00016438,2]
[389562486,1759715438811,-286.74293775,0.00016438,2]
[389562487,1759715438820,-500.0,0.00016438,2]
[389562488,1759715438829,-481.59928484,0.00016438,2]
[389562489,1759715438838,-500.0,0.00016438,2]
[389562490,1759715438847,-500.0,0.00016438,2]
[389562491,1759715438857,-501.69953398,0.00016438,2]
[389562492,1759715438866,-482.01538371,0.00016438,2]
[389562493,1759715438875,-500.0,0.00016438,2]
[389562494,1759715438884,-500.0,0.00016438,2]
[389562495,1759715438893,-483.38064516,0.00016438,2]
[389562496,1759715438902,-501.27537598,0.00016438,2]
[389562497,1759715438911,-413.39801435,0.00016438,2]
[389562498,1759715438920,-500.0,0.00016438,2]
[389562499,1759715438929,-500.0,0.00016438,2]
[389562500,1759715438938,-500.0,0.00016438,2]
[389562501,1759715438947,-500.0,0.00016438,2]
[389562502,1759715438956,-482.04013733,0.00016438,2]
[389562503,1759715438965,-500.0,0.00016438,2]
[389562504,1759715438974,-481.65830386,0.00016438,2]
[389562505,1759715438983,-500.0,0.00016438,2]
[389562506,1759715438992,-500.0,0.00016438,2]